fUST/lending_fUST_20240808
["ID","MTS","AMOUNT","RATE_DAILY","PERIOD"]
[334435887,1723097457780,-1873.06,0.00027945,7]
[334435888,1723097457790,-500.0,0.00027945,7]
[334435889,1723097457799,-568.08,0.00027945,7]
[334435890,1723097457808,-500.0,0.00027945,7]
[334435891,1723097457818,-500.0,0.00027945,7]
[334435892,1723097457828,-503.52231645,0.00027945,7]
[334435893,1723097457837,-500.0,0.00027945,7]
[334435894,1723097457846,-500.0,0.00027945,7]
[334435895,1723097457856,-501.47377201,0.00027945,7]
[334435896,1723097457866,-500.0,0.00027945,7]
[334435897,1723097457875,-744.91,0.00027945,7]
[334435898,1723097457885,-1155.09,0.00027945,7]
[334435899,1723097457894,-925.79,0.00027945,7]
[334435900,1723097457904,-1556.36,0.00027945,7]
[334435901,1723097457914,-504.01331485,0.00027945,7]
[334435902,1723097457924,-500.0,0.00027945,7]
[334435903,1723097457933,-500.0,0.00027945,7]
[334435904,1723097457942,-1001.87,0.00027945,7]
[334435905,1723097457952,-822.61,0.00027945,7]
[334435906,1723097457962,-500.0,0.00027945,7]
[334435907,1723097457975,-500.0,0.00027945,7]
[334435908,1723097457985,-500.0,0.00027945,7]
[334435909,1723097457995,-500.0,0.00027945,7]
[334435910,1723097458005,-580.03293539,0.00027945,7]
[334435911,1723097458015,-727.37,0.00027945,7]
[334435912,1723097458025,-500.0,0.00027945,7]
[334435913,1723097458034,-556.34,0.00027945,7]
[334435914,1723097458044,-212.26191057,0.00027945,7]
[334435915,1723097458054,-502.59138878,0.00027945,7]
[334435916,1723097458064,-500.0,0.00027945,7]
[334435917,1723097458076,-1119.39,0.00027945,7]
[334435918,1723097458087,-533.76,0.00027945,7]
[334435919,1723097458097,-500.0,0.00027945,7]
[334435920,1723097458107,-505.43659713,0.00027945,7]
[334435921,1723097458119,-1082.35,0.00027945,7]
[334435922,1723097458130,-500.0,0.00027945,7]
[334435923,1723097458141,-439.28384441,0.00027945,7]
[334435924,1723097458150,-526.88,0.00027945,7]
[334435925,1723097458160,-500.0,0.00027945,7]
[334435926,1723097458169,-500.0,0.00027945,7]
[334435927,1723097458178,-1017.08,0.00027945,7]
[334435928,1723097458188,-1633.61,0.00027945,7]
[334435929,1723097458197,-500.0,0.00027945,7]
[334435930,1723097458206,-552.87660334,0.00027945,7]
[334435931,1723097458215,-1757.49,0.00027945,7]
[334435932,1723097458229,-500.0,0.00027945,7]
[334435933,1723097458238,-670.56,0.00027945,7]
[334435934,1723097458248,-674.56,0.00027945,7]
[334435935,1723097458257,-500.0,0.00027945,7]
[334435936,1723097458266,-500.0,0.00027945,7]
[334435937,1723097458281,-500.0,0.00027945,7]
[334435938,1723097458292,-503.75988016,0.00027945,7]
[334435939,1723097458302,-752.34,0.00027945,7]
[334435940,1723097458311,-500.0,0.00027945,7]
[334435941,1723097458322,-500.0,0.00027945,7]
[334435942,1723097458331,-1005.06,0.00027945,7]
[334435943,1723097458340,-500.0,0.00027945,7]
[334435944,1723097458350,-541.27,0.00027945,7]
[334435945,1723097458359,-500.0,0.00027945,7]
[334435946,1723097458371,-688.97,0.00027945,7]
[334435947,1723097458380,-500.0,0.00027945,7]
[334435948,1723097458389,-500.0,0.00027945,7]
[334435949,1723097458398,-500.0,0.00027945,7]
[334435950,1723097458407,-500.0,0.00027945,7]
[334435951,1723097458416,-500.0,0.00027945,7]
[334435952,1723097458426,-500.0,0.00027945,7]
[334435953,1723097458436,-500.0,0.00027945,7]
[334435954,1723097458446,-577.35,0.00027945,7]
[334435955,1723097458456,-500.0,0.00027945,7]
[334435956,1723097458467,-500.0,0.00027945,7]
[334435957,1723097458482,-500.0,0.00027945,7]
[334435958,1723097458494,-500.0,0.00027945,7]
[334435959,1723097458503,-596.69,0.00027945,7]
[334435960,1723097458513,-500.0,0.00027945,7]
[334435961,1723097458524,-500.0,0.00027945,7]
[334435962,1723097458533,-500.0,0.00027945,7]
[334435963,1723097458545,-500.0,0.00027945,7]
[334435964,1723097458555,-500.0,0.00027945,7]
[334435965,1723097458565,-500.0,0.00027945,7]
[334435966,1723097458575,-1200.63,0.00027945,7]
[334435967,1723097458587,-503.20865657,0.00027945,7]
[334435968,1723097458598,-1719.03,0.00027945,7]
[334435969,1723097458608,-500.0,0.00027945,7]
[334435970,1723097458618,-500.0,0.00027945,7]
[334435971,1723097458627,-1032.93,0.00027945,7]
[334435972,1723097458637,-500.0,0.00027945,7]
[334435973,1723097458646,-1221.05,0.00027945,7]
[334435974,1723097458655,-357.61939091,0.00027945,7]
[334435975,1723097458665,-500.0,0.00027945,7]
[334435976,1723097458674,-687.5,0.00027945,7]
[334435977,1723097458726,-500.0,0.00027945,7]
[334435978,1723097458735,-500.0,0.00027945,7]
[334435979,1723097458744,-500.0,0.00027945,7]
[334435980,1723097458753,-500.0,0.00027945,7]
[334435981,1723097458763,-562.23,0.00027945,7]
[334435982,1723097458772,-500.0,0.00027945,7]
[334435983,1723097458781,-500.0,0.00027945,7]
[334435984,1723097458790,-500.0,0.00027945,7]
[334435985,1723097458799,-500.0,0.00027945,7]
[334435986,1723097458808,-1584.72,0.00027945,7]
[334435987,1723097458818,-500.0,0.00027945,7]
[334435988,1723097458828,-500.0,0.00027945,7]
[334435989,1723097458837,-423.51124401,0.00027945,7]
[334435990,1723097458847,-1735.01,0.00027945,7]
[334435991,1723097458856,-543.21899016,0.00027945,7]
[334435992,1723097458865,-527.88,0.00027945,7]
[334435993,1723097458875,-964.29,0.00027945,7]
[334435994,1723097458885,-553.06,0.00027945,7]
[334435995,1723097458895,-500.0,0.00027945,7]
[334435996,1723097458904,-579.2,0.00027945,7]
[334435997,1723097458913,-518.32,0.00027945,7]
[334435998,1723097458923,-500.0,0.00027945,7]
[334435999,1723097458932,-1109.54,0.00027945,7]
[334436000,1723097458941,-500.0,0.00027945,7]
[334436001,1723097458951,-500.0,0.00027945,7]
[334436002,1723097458960,-500.0,0.00027945,7]
[334436003,1723097458969,-501.62698562,0.00027945,7]
[334436004,1723097458981,-1294.75,0.00027945,7]
[334436005,1723097458990,-500.0,0.00027945,7]
[334436006,1723097459000,-513.73142351,0.00027945,7]
[334436007,1723097459009,-500.0,0.00027945,7]
[334436008,1723097459018,-509.79120998,0.00027945,2]
[334436009,1723097459028,-500.0,0.00027945,7]
[334436010,1723097459037,-4225.77,0.00027945,7]
[334436011,1723097459046,-500.0,0.00027945,7]
[334436012,1723097459056,-500.0,0.00027945,7]
[334436013,1723097459066,-500.0,0.00027945,7]
[334436014,1723097459075,-572.08,0.00027945,7]
[334436015,1723097459084,-1565.79,0.00027945,7]
[334436016,1723097459093,-1291.46,0.00027945,7]
[334436017,1723097459102,-552.47,0.00027945,7]
[334436018,1723097459112,-501.31947171,0.00027945,7]
[334436019,1723097459121,-500.0,0.00027945,7]
[334436020,1723097459131,-2418.34,0.00027945,7]
[334436021,1723097459140,-501.76602108,0.00027945,7]
[334436022,1723097459154,-1739.01,0.00027945,7]
[334436023,1723097459163,-500.0,0.00027945,7]
[334436024,1723097459172,-500.0,0.00027945,7]
[334436025,1723097459182,-659.81,0.00027945,7]
[334436026,1723097459192,-500.0,0.00027945,7]
[334436027,1723097459201,-2994.86,0.00027945,7]
[334436028,1723097459210,-500.0,0.00027945,7]
[334436029,1723097459219,-500.0,0.00027945,7]
[334436030,1723097459231,-1068.1,0.00027945,7]
[334436031,1723097459240,-500.0,0.00027945,7]
[334436032,1723097459250,-500.0,0.00027945,7]
[334436033,1723097459259,-500.0,0.00027945,7]
[334436034,1723097459269,-500.0,0.00027945,7]
[334436035,1723097459278,-500.0,0.00027945,7]
[334436036,1723097459291,-500.0,0.00027945,7]
[334436037,1723097459300,-771.85,0.00027945,7]
[334436038,1723097459310,-500.0,0.00027945,7]
[334436039,1723097459319,-500.0,0.00027945,7]
[334436040,1723097459329,-3357.13,0.00027945,7]
[334436041,1723097459339,-4524.16,0.00027945,7]
[334436042,1723097459348,-500.0,0.00027945,7]
[334436043,1723097459358,-500.0,0.00027945,7]
[334436044,1723097459368,-500.0,0.00027945,7]
[334436045,1723097459379,-2860.32,0.00027945,7]
[334436046,1723097459389,-500.0,0.00027945,7]
[334436047,1723097459398,-3055.56,0.00027945,7]
[334436048,1723097459408,-500.0,0.00027945,7]
[334436049,1723097459418,-500.0,0.00027945,7]
[334436050,1723097459428,-2611.44,0.00027945,7]
[334436051,1723097459437,-500.0,0.00027945,7]
[334436052,1723097459447,-500.0,0.00027945,7]
[334436053,1723097459457,-2173.03,0.00027945,7]
[334436054,1723097459466,-500.0,0.00027945,7]
[334436055,1723097459477,-500.0,0.00027945,7]
[334436056,1723097459487,-500.0,0.00027945,7]
[334436057,1723097459496,-501.0,0.00027945,7]
[334436058,1723097459506,-1497.66,0.00027945,7]
[334436059,1723097459515,-2916.59,0.00027945,7]
[334436060,1723097459524,-15082.67,0.00027945,7]
[334436061,1723097459534,-608.74,0.00027945,7]
[334436062,1723097459544,-500.0,0.00027945,7]
[334436063,1723097459555,-500.0,0.00027945,7]
[334436064,1723097459564,-500.0,0.00027945,7]
[334436065,1723097459575,-502.18654392,0.00027945,7]
[334436066,1723097459584,-3210.55,0.00027945,7]
[334436067,1723097459594,-741.46,0.00027945,7]
[334436068,1723097459604,-503.12,0.00027945,7]
[334436069,1723097459613,-527.37,0.00027945,7]
[334436070,1723097459622,-500.0,0.00027945,7]
[334436071,1723097459631,-500.0,0.00027945,7]
[334436072,1723097459641,-4006.01,0.00027945,7]
[334436073,1723097459651,-919.24,0.00027945,7]
[334436074,1723097459661,-500.0,0.00027945,7]
[334436075,1723097459670,-802.71,0.00027945,7]
[334436076,1723097459679,-626.88140076,0.00027945,7]
[334436077,1723097459690,-1094.26,0.00027945,7]
[334436078,1723097459700,-500.0,0.00027945,7]
[334436079,1723097459709,-2445.43,0.00027945,7]
[334436080,1723097459719,-2524.39,0.00027945,7]
[334436081,1723097459730,-197.97627431,0.00027945,7]
[334436082,1723097459741,-525.45,0.00027945,7]
[334436083,1723097459750,-500.0,0.00027945,7]
[334436084,1723097459760,-1510.39,0.00027945,7]
[334436085,1723097459770,-500.0,0.00027945,7]
[334436086,1723097459780,-500.0,0.00027945,7]
[334436087,1723097459790,-500.0,0.00027945,7]
[334436088,1723097459799,-3917.99,0.00027945,7]
[334436089,1723097459809,-500.0,0.00027945,7]
[334436090,1723097459819,-265.69115944,0.00027945,7]
[334436091,1723097459828,-822.17,0.00027945,7]
[334436092,1723097459838,-502.70836322,0.00027945,7]
[334436093,1723097459847,-771.01,0.00027945,7]
[334436094,1723097459857,-500.0,0.00027945,7]
[334436095,1723097459866,-1668.08,0.00027945,7]
[334436096,1723097459876,-500.0,0.00027945,7]
[334436097,1723097459885,-500.0,0.00027945,7]
[334436098,1723097459895,-500.0,0.00027945,7]
[334436099,1723097459904,-1266.97,0.00027945,7]
[334436100,1723097459914,-10380.83,0.00027945,7]
[334436101,1723097459924,-500.0,0.00027945,7]
[334436102,1723097459934,-655.78,0.00027945,7]
[334436103,1723097459943,-1441.39,0.00027945,7]
[334436104,1723097459953,-713.66,0.00027945,7]
[334436105,1723097459962,-514.47,0.00027945,7]
[334436106,1723097459972,-500.0,0.00027945,7]
[334436107,1723097459982,-1177.2,0.00027945,7]
[334436108,1723097459992,-5574.35,0.00027945,7]
[334436109,1723097460001,-1910.12,0.00027945,7]
[334436110,1723097460011,-6251.91,0.00027945,7]
[334436111,1723097460021,-816.09,0.00027945,7]
[334436112,1723097460030,-869.11,0.00027945,7]
[334436113,1723097460040,-913.01,0.00027945,7]
[334436114,1723097460049,-2096.19,0.00027945,7]
[334436115,1723097460060,-1855.07,0.00027945,7]
[334436116,1723097460069,-4052.01,0.00027945,7]
[334436117,1723097460079,-632.19178777,0.00027945,7]
[334436118,1723097460089,-500.0,0.00027945,7]
[334436119,1723097460098,-670.22,0.00027945,7]
[334436120,1723097460107,-1462.72,0.00027945,7]
[334436121,1723097460117,-500.0,0.00027945,7]
[334436122,1723097460126,-500.0,0.00027945,7]
[334436123,1723097460135,-2151.26,0.00027945,7]
[334436124,1723097460145,-500.0,0.00027945,7]
[334436125,1723097460154,-1697.36,0.00027945,7]
[334436126,1723097460164,-500.0,0.00027945,7]
[334436127,1723097460173,-502.91166621,0.00027945,7]
[334436128,1723097460183,-503.11591155,0.00027945,7]
[334436129,1723097460193,-240.04156707,0.00027945,7]
[334436130,1723097460202,-504.33304855,0.00027945,7]
[334436131,1723097460212,-633.78199634,0.00027945,7]
[334436132,1723097460222,-6678.77,0.00027945,7]
[334436133,1723097460234,-502.86453704,0.00027945,7]
[334436134,1723097460244,-500.0,0.00027945,7]
[334436135,1723097460254,-5045.16471331,0.00027945,7]
[334436136,1723097460537,-5420.54528669,0.00027945,7]
[334436137,1723097460548,-2728.76,0.00027945,7]
[334436138,1723097460558,-940.62,0.00027945,7]
[334436139,1723097460568,-500.0,0.00027945,7]
[334436140,1723097460578,-500.0,0.00027945,7]
[334436141,1723097460588,-500.0,0.00027945,7]
[334436142,1723097460598,-1490.53,0.00027945,7]
[334436143,1723097460608,-501.07,0.00027945,7]
[334436144,1723097460617,-502.58372934,0.00027945,7]
[334436145,1723097460627,-694.81,0.00027945,7]
[334436146,1723097460637,-2560.46,0.00027945,7]
[334436147,1723097460647,-500.0,0.00027945,7]
[334436148,1723097460658,-81.7772264,0.00027945,7]
[334436149,1723097460791,-155.13148679,0.0001904,2]
[334436150,1723097460801,-6456.19674024,0.00022973,2]
[334436151,1723097460811,-608.46585,0.0002699,7]
[334436152,1723097460820,-608.46585,0.00027,7]
[334436153,1723097460830,-163.673274,0.00027287,7]
[334436154,1723097460840,-608.46585,0.00027287,7]
[334436155,1723097460849,-910.72889,0.00027397,7]
[334436156,1723097460859,-4019.9127736,0.00027945,7]
[334436157,1723097460869,-500.0,0.00027945,7]
[334436158,1723097460879,-583.69,0.00027945,7]
[334436159,1723097460889,-901.18,0.00027945,7]
[334436160,1723097460900,-500.0,0.00027945,7]
[334436161,1723097460910,-500.0,0.00027945,7]
[334436162,1723097460921,-587.51,0.00027945,7]
[334436163,1723097460931,-792.62,0.00027945,7]
[334436164,1723097460941,-500.0,0.00027945,7]
[334436165,1723097460951,-869.94,0.00027945,7]
[334436166,1723097460961,-371.19046015,0.00027945,7]
[334436167,1723097460971,-1845.59,0.00027945,7]
[334436168,1723097460983,-500.0,0.00027945,7]
[334436169,1723097460992,-500.0,0.00027945,7]
[334436170,1723097461003,-407.26,0.00027945,7]
[334436171,1723097461012,-647.75,0.00027945,7]
[334436172,1723097461022,-160.0,0.00027962,5]
[334436173,1723097461032,-160.0,0.00027962,3]
[334436174,1723097461043,-162.34820883,0.00027962,5]
[334436175,1723097461052,-200.0,0.00027973,5]
[334436176,1723097461062,-200.0,0.00027973,5]
[334436177,1723097461072,-1000.0,0.00028,2]
[334436178,1723097461081,-190.4,0.00028023,4]
[334436179,1723097461091,-194.7,0.00028023,4]
[334436180,1723097461101,-792.40751736,0.00028042,2]
[334436181,1723097461110,-133053.5786796,0.000281,2]
[334436182,1723097461120,-1981.637,0.00028155,120]
[334436183,1723097461130,-1981.637,0.00028155,120]
[334436184,1723097461140,-1981.638,0.00028155,120]
[334436185,1723097461151,-1981.637,0.00028155,120]
[334436186,1723097461161,-1981.637,0.00028155,120]
[334436187,1723097461171,-926.75,0.00028219,7]
[334436188,1723097461181,-516.33,0.00028219,7]
[334436189,1723097461191,-616.52,0.00028219,7]
[334436190,1723097461201,-1185.87,0.00028219,7]
[334436191,1723097461211,-563.69,0.00028219,7]
[334436192,1723097461221,-500.0,0.00028219,7]
[334436193,1723097461234,-500.0,0.00028219,7]
[334436194,1723097461243,-570.71,0.00028219,7]
[334436195,1723097461253,-500.0,0.00028219,7]
[334436196,1723097461262,-544.93,0.00028219,7]
[334436197,1723097461272,-500.0,0.00028219,7]
[334436198,1723097461283,-500.0,0.00028219,7]
[334436199,1723097461294,-587.75,0.00028219,7]
[334436200,1723097461304,-500.0,0.00028219,7]
[334436201,1723097461313,-500.0,0.00028219,7]
[334436202,1723097461323,-500.0,0.00028219,7]
[334436203,1723097461333,-638.14820629,0.00028219,7]
[334436204,1723097461343,-500.0,0.00028219,7]
[334436205,1723097461353,-500.0,0.00028219,7]
[334436206,1723097461365,-500.0,0.00028219,7]
[334436207,1723097461376,-500.0,0.00028219,7]
[334436208,1723097461386,-500.0,0.00028219,7]
[334436209,1723097461395,-500.0,0.00028219,7]
[334436210,1723097461405,-500.0,0.00028219,7]
[334436211,1723097461415,-500.0,0.00028219,7]
[334436212,1723097461424,-503.24343331,0.00028219,7]
[334436213,1723097461434,-500.0,0.00028219,7]
[334436214,1723097461444,-647.18,0.00028219,7]
[334436215,1723097461455,-500.0,0.00028219,7]
[334436216,1723097461464,-503.31204216,0.00028219,7]
[334436217,1723097461474,-500.0,0.00028219,7]
[334436218,1723097461486,-500.0,0.00028219,7]
[334436219,1723097461495,-500.0,0.00028219,7]
[334436220,1723097461505,-500.0,0.00028219,7]
[334436221,1723097461515,-500.0,0.00028219,7]
[334436222,1723097461525,-500.0,0.00028219,7]
[334436223,1723097461535,-500.0,0.00028219,7]
[334436224,1723097461544,-500.0,0.00028219,7]
[334436225,1723097461555,-500.0,0.00028219,7]
[334436226,1723097461565,-504.82248317,0.00028219,7]
[334436227,1723097461574,-500.0,0.00028219,7]
[334436228,1723097461584,-1176.69,0.00028219,7]
[334436229,1723097461593,-500.0,0.00028219,7]
[334436230,1723097461604,-500.0,0.00028219,7]
[334436231,1723097461613,-746.49,0.00028219,7]
[334436232,1723097461623,-522.59,0.00028219,7]
[334436233,1723097461633,-500.0,0.00028219,7]
[334436234,1723097461643,-500.0,0.00028219,7]
[334436235,1723097461654,-500.0,0.00028219,7]
[334436236,1723097461664,-500.0,0.00028219,7]
[334436237,1723097461674,-500.0,0.00028219,7]
[334436238,1723097461684,-500.0,0.00028219,7]
[334436239,1723097461694,-541.15081709,0.00028219,7]
[334436240,1723097461704,-500.0,0.00028219,7]
[334436241,1723097461714,-615.65,0.00028219,7]
[334436242,1723097461723,-500.0,0.00028219,7]
[334436243,1723097461737,-500.0,0.00028219,7]
[334436244,1723097461747,-500.0,0.00028219,7]
[334436245,1723097461756,-701.56,0.00028219,7]
[334436246,1723097461766,-500.0,0.00028219,7]
[334436247,1723097461776,-500.0,0.00028219,7]
[334436248,1723097461786,-500.0,0.00028219,7]
[334436249,1723097461795,-525.21,0.00028219,7]
[334436250,1723097461805,-914.38,0.00028219,7]
[334436251,1723097461819,-500.0,0.00028219,7]
[334436252,1723097461830,-500.0,0.00028219,7]
[334436253,1723097461846,-500.0,0.00028219,7]
[334436254,1723097461856,-1042.79,0.00028219,7]
[334436255,1723097461865,-1320.93,0.00028219,7]
[334436256,1723097461875,-500.0,0.00028219,7]
[334436257,1723097461885,-676.12,0.00028219,7]
[334436258,1723097461895,-500.0,0.00028219,7]
[334436259,1723097461905,-500.0,0.00028219,7]
[334436260,1723097461916,-500.0,0.00028219,7]
[334436261,1723097461927,-500.0,0.00028219,7]
[334436262,1723097461936,-1274.14,0.00028219,7]
[334436263,1723097461946,-500.0,0.00028219,7]
[334436264,1723097461956,-500.0,0.00028219,7]
[334436265,1723097461967,-1435.68,0.00028219,7]
[334436266,1723097461981,-500.0,0.00028219,7]
[334436267,1723097461990,-500.0,0.00028219,7]
[334436268,1723097462000,-874.42,0.00028219,7]
[334436269,1723097462009,-500.0,0.00028219,7]
[334436270,1723097462019,-500.0,0.00028219,7]
[334436271,1723097462029,-558.4,0.00028219,7]
[334436272,1723097462039,-500.0,0.00028219,7]
[334436273,1723097462048,-502.2114673,0.00028219,7]
[334436274,1723097462059,-1250.57,0.00028219,7]
[334436275,1723097462068,-500.0,0.00028219,7]
[334436276,1723097462078,-500.0,0.00028219,7]
[334436277,1723097462089,-500.0,0.00028219,7]
[334436278,1723097462100,-626.74904584,0.00028219,7]
[334436279,1723097462110,-2155.12,0.00028219,7]
[334436280,1723097462120,-694.77,0.00028219,7]
[334436281,1723097462130,-185.87510042,0.00028219,7]
[334436282,1723097462140,-505.65714236,0.00028219,7]
[334436283,1723097462149,-500.0,0.00028219,7]
[334436284,1723097462160,-500.0,0.00028219,7]
[334436285,1723097462170,-500.0,0.00028219,7]
[334436286,1723097462181,-500.0,0.00028219,7]
[334436287,1723097462191,-500.0,0.00028219,7]
[334436288,1723097462201,-500.0,0.00028219,7]
[334436289,1723097462212,-652.81,0.00028219,7]
[334436290,1723097462222,-500.0,0.00028219,7]
[334436291,1723097462234,-200.0,0.00028219,7]
[334436292,1723097462244,-500.0,0.00028219,7]
[334436293,1723097462254,-500.0,0.00028219,7]
[334436294,1723097462264,-503.88767703,0.00028219,7]
[334436295,1723097462277,-767.57,0.00028219,7]
[334436296,1723097462287,-500.0,0.00028219,7]
[334436297,1723097462297,-1218.11,0.00028219,7]
[334436298,1723097462306,-377.24499675,0.00028219,7]
[334436299,1723097462317,-1397.27,0.00028219,7]
[334436300,1723097462327,-500.0,0.00028219,7]
[334436301,1723097462337,-500.0,0.00028219,7]
[334436302,1723097462500,-501.87385666,0.00028219,7]
[334436303,1723097462510,-500.0,0.00028219,7]
[334436304,1723097462520,-500.0,0.00028219,7]
[334436305,1723097462530,-1574.69,0.00028219,7]
[334436306,1723097462540,-500.0,0.00028219,7]
[334436307,1723097462551,-995.53,0.00028219,7]
[334436308,1723097462561,-1849.78,0.00028219,7]
[334436309,1723097462571,-500.0,0.00028219,7]
[334436310,1723097462581,-500.0,0.00028219,7]
[334436311,1723097462591,-500.0,0.00028219,7]
[334436312,1723097462601,-2106.63,0.00028219,7]
[334436313,1723097462611,-500.0,0.00028219,7]
[334436314,1723097462622,-500.0,0.00028219,2]
[334436315,1723097462632,-529.59,0.00028219,7]
[334436316,1723097462642,-500.0,0.00028219,7]
[334436317,1723097462652,-603.91,0.00028219,7]
[334436318,1723097462662,-500.0,0.00028219,7]
[334436319,1723097462672,-500.0,0.00028219,7]
[334436320,1723097462683,-500.0,0.00028219,7]
[334436321,1723097462693,-500.0,0.00028219,7]
[334436322,1723097462702,-2032.38,0.00028219,7]
[334436323,1723097462712,-914.44,0.00028219,7]
[334436324,1723097462723,-500.0,0.00028219,7]
[334436325,1723097462736,-500.0,0.00028219,7]
[334436326,1723097462747,-786.32,0.00028219,7]
[334436327,1723097462758,-505.25959199,0.00028219,7]
[334436328,1723097462769,-500.0,0.00028219,7]
[334436329,1723097462779,-677.89,0.00028219,7]
[334436330,1723097462789,-500.0,0.00028219,7]
[334436331,1723097462798,-500.0,0.00028219,7]
[334436332,1723097462807,-1873.06,0.00028219,7]
[334436333,1723097462817,-500.0,0.00028219,7]
[334436334,1723097462827,-568.08,0.00028219,7]
[334436335,1723097462836,-491.46575422,0.00028219,7]
[334436336,1723097462846,-500.0,0.00028219,7]
[334436337,1723097462856,-500.0,0.00028219,7]
[334436338,1723097462867,-500.0,0.00028219,7]
[334436339,1723097462877,-500.0,0.00028219,7]
[334436340,1723097462887,-744.91,0.00028219,7]
[334436341,1723097462896,-1155.09,0.00028219,7]
[334436342,1723097462905,-925.79,0.00028219,7]
[334436343,1723097462915,-1556.36,0.00028219,7]
[334436344,1723097462924,-500.0,0.00028219,7]
[334436345,1723097462934,-500.0,0.00028219,7]
[334436346,1723097462943,-1001.87,0.00028219,7]
[334436347,1723097462953,-822.61,0.00028219,7]
[334436348,1723097462962,-500.0,0.00028219,7]
[334436349,1723097462972,-500.0,0.00028219,7]
[334436350,1723097462983,-500.0,0.00028219,7]
[334436351,1723097462999,-502.12873497,0.00028219,7]
[334436352,1723097463008,-727.37,0.00028219,7]
[334436353,1723097463018,-500.0,0.00028219,7]
[334436354,1723097463028,-556.34,0.00028219,7]
[334436355,1723097463037,-500.0,0.00028219,7]
[334436356,1723097463047,-1119.39,0.00028219,7]
[334436357,1723097463057,-533.76,0.00028219,7]
[334436358,1723097463068,-500.0,0.00028219,7]
[334436359,1723097463078,-1082.35,0.00028219,7]
[334436360,1723097463088,-500.0,0.00028219,7]
[334436361,1723097463098,-500.0,0.00028219,7]
[334436362,1723097463107,-526.88,0.00028219,7]
[334436363,1723097463116,-198.29249239,0.00028219,7]
[334436364,1723097463126,-1017.08,0.00028219,7]
[334436365,1723097463137,-1633.61,0.00028219,7]
[334436366,1723097463147,-1757.49,0.00028219,7]
[334436367,1723097463157,-500.0,0.00028219,7]
[334436368,1723097463167,-670.56,0.00028219,7]
[334436369,1723097463178,-674.56,0.00028219,7]
[334436370,1723097463188,-500.0,0.00028219,7]
[334436371,1723097463199,-500.0,0.00028219,7]
[334436372,1723097463208,-500.0,0.00028219,7]
[334436373,1723097463219,-752.34,0.00028219,7]
[334436374,1723097463230,-500.0,0.00028219,7]
[334436375,1723097463240,-503.8519229,0.00028219,7]
[334436376,1723097463249,-1005.06,0.00028219,7]
[334436377,1723097463259,-541.27,0.00028219,7]
[334436378,1723097463268,-301.11314905,0.00028219,7]
[334436379,1723097463278,-688.97,0.00028219,7]
[334436380,1723097463291,-647.21402322,0.00028219,7]
[334436381,1723097463300,-500.0,0.00028219,7]
[334436382,1723097463310,-500.0,0.00028219,7]
[334436383,1723097463320,-500.0,0.00028219,7]
[334436384,1723097463330,-500.0,0.00028219,7]
[334436385,1723097463340,-500.0,0.00028219,7]
[334436386,1723097463350,-577.35,0.00028219,7]